bitfinex-derivatives/quotes_BTCF0:USTF0_20250716
["timestamp","ask_amount","ask_price","bid_price","bid_amount"]
[1752626665001,0.00736,117960.0,117950.0,1.53306796]
[1752626665208,0.00736,117960.0,117950.0,1.57885047]
[1752626665509,0.00736,117960.0,117950.0,1.57865047]
[1752626666008,0.00736,117960.0,117950.0,1.29337356]
[1752626666207,0.00736,117960.0,117950.0,1.26306292]
[1752626666401,0.22684,117960.0,117950.0,1.54833983]
[1752626666809,0.22684,117960.0,117950.0,1.26306292]
[1752626667310,0.22684,117960.0,117950.0,1.54833983]
[1752626667506,0.22684,117960.0,117950.0,1.18753983]
[1752626670612,0.21948,117960.0,117950.0,1.18753983]
[1752626670810,0.40416377,117980.0,117970.0,0.1695106]
[1752626671013,0.40653377,117980.0,117970.0,0.86376165]
[1752626671212,0.36415967,117980.0,117970.0,0.86376165]
[1752626672019,0.19466127,117980.0,117970.0,0.86376165]
[1752626672217,0.1718663,117980.0,117970.0,0.86376165]
[1752626673015,0.5376563,117980.0,117970.0,0.86376165]
[1752626673517,0.5376563,117980.0,117970.0,0.87245287]
[1752626673914,0.5376563,117980.0,117970.0,0.84967599]
[1752626674221,0.5376563,117980.0,117970.0,0.87245287]
[1752626675623,0.5376563,117980.0,117970.0,0.84967599]
[1752626676219,0.5376563,117980.0,117970.0,0.87245287]
[1752626676715,0.36816,117980.0,117970.0,1.15772978]
[1752626676922,0.36816,117980.0,117970.0,1.16225978]
[1752626678930,0.36816,117980.0,117970.0,1.16159978]
[1752626679717,0.00736,117980.0,117970.0,1.16159978]
[1752626680127,0.00736,117980.0,117970.0,1.19196896]
[1752626680527,0.00736,117980.0,117970.0,1.18743896]
[1752626680823,0.1768563,117980.0,117970.0,1.18743896]
[1752626681025,0.1768563,117980.0,117970.0,1.19196896]
[1752626681226,0.00736,117980.0,117970.0,0.90669205]
[1752626681430,0.00736,117980.0,117970.0,1.19196896]
[1752626682720,0.00736,117990.0,117980.0,0.1763863]
[1752626682926,0.00736,117990.0,117980.0,0.50937426]
[1752626683326,0.1768419,117990.0,117980.0,0.48660172]
[1752626684035,0.1768419,117990.0,117980.0,0.83996481]
[1752626684920,0.46211881,117990.0,117980.0,0.83483481]
[1752626685730,0.46211881,117990.0,117980.0,0.85760735]
[1752626686432,0.46211881,117990.0,117980.0,0.21956735]
[1752626686636,0.1768419,117990.0,117980.0,0.85736735]
[1752626686824,0.46211881,117990.0,117980.0,0.85736735]
[1752626687024,0.46211881,117990.0,117980.0,0.85624735]
[1752626687924,0.1768419,117990.0,117980.0,0.85624735]
[1752626689430,0.1768419,117990.0,117980.0,1.14651426]
[1752626690626,0.1768419,117990.0,117980.0,1.14751426]
[1752626691229,0.00736,117990.0,117980.0,1.14751426]
[1752626692033,0.00736,117990.0,117980.0,0.86223735]
[1752626692236,0.00736,117990.0,117980.0,1.14751426]
[1752626693232,0.176842,117990.0,117980.0,0.83946481]
[1752626693429,0.46211891,117990.0,117980.0,0.83946481]
[1752626693631,0.176842,117990.0,117980.0,0.83946481]
[1752626693831,0.46211891,117990.0,117980.0,0.83946481]
[1752626694133,0.46211891,117990.0,117980.0,0.83339481]
[1752626694735,0.46211891,117990.0,117980.0,0.83451481]
[1752626694935,0.46211891,117990.0,117980.0,0.8095763]
[1752626695135,0.46211891,117990.0,117980.0,0.8090963]
[1752626695338,0.82291891,117990.0,117980.0,0.8090963]
[1752626697335,0.82291891,117990.0,117980.0,0.1718563]
[1752626697637,0.82291891,117990.0,117980.0,0.8079363]
[1752626698942,0.82291891,117990.0,117980.0,0.1718563]
[1752626699439,0.537642,117990.0,117980.0,0.1694963]
[1752626699641,0.82291891,117990.0,117980.0,0.1694963]
[1752626700531,0.1694963,117980.0,117970.0,0.28004275]
[1752626700732,0.82283321,117980.0,117970.0,0.89705005]
[1752626700932,1.47635072,117980.0,117970.0,0.03340329]
[1752626701135,1.47635072,117980.0,117970.0,0.20291399]
[1752626701440,1.47635072,117980.0,117970.0,0.00012735]
[1752626701836,1.64587872,117980.0,117970.0,0.00012735]
[1752626702136,1.64587872,117980.0,117950.0,0.22906374]
[1752626702137,0.1767851,117960.0,117950.0,0.22906374]
[1752626702337,1.1720651,117960.0,117950.0,0.19413375]
[1752626702538,1.45734201,117960.0,117950.0,0.1695395]
[1752626703139,1.45734201,117960.0,117950.0,0.21674967]
[1752626703345,1.45734201,117960.0,117950.0,0.19397713]
[1752626704236,0.5375851,117960.0,117950.0,0.19397713]
[1752626704441,0.8114251,117960.0,117950.0,0.48150404]
[1752626704644,1.1722251,117960.0,117950.0,0.48150404]
[1752626706440,1.1722251,117960.0,117950.0,0.48649404]
[1752626706747,0.00726,117960.0,117950.0,0.48649404]
[1752626707145,0.00726,117970.0,117960.0,0.1767651]
[1752626707341,0.19547381,117980.0,117970.0,0.1767507]
[1752626707537,0.02597751,117980.0,117970.0,1.09574761]
[1752626710754,0.19547381,117980.0,117970.0,1.09574761]
[1752626710956,0.19547381,117980.0,117970.0,1.11962333]
[1752626711556,0.02597751,117980.0,117970.0,1.14239587]
[1752626711755,0.02597751,117980.0,117970.0,0.85711896]
[1752626711756,0.19547381,117980.0,117970.0,0.85711896]
[1752626711955,0.19547381,117980.0,117970.0,1.14239587]
[1752626712955,0.19547381,117980.0,117970.0,0.85711896]
[1752626713156,0.19547381,117980.0,117970.0,1.11962333]
[1752626713957,0.19547381,117980.0,117970.0,1.14239587]
[1752626714757,0.19547381,117980.0,117970.0,1.11962333]
[1752626715259,0.19547381,117980.0,117970.0,1.11678333]
[1752626715753,0.02597751,117980.0,117970.0,1.11678333]
[1752626716158,0.02597751,117980.0,117970.0,1.13955587]
[1752626716457,0.02597751,117980.0,117970.0,0.50867587]
[1752626716758,0.02597751,117980.0,117970.0,1.13835587]
[1752626717058,0.02597751,117980.0,117970.0,1.49915587]
[1752626717259,0.02597751,117980.0,117970.0,0.86947587]
[1752626717459,0.19547381,117980.0,117970.0,1.49887587]
[1752626717659,0.19547381,117980.0,117970.0,1.21359896]
[1752626717858,0.19547381,117980.0,117970.0,1.49887587]
[1752626718355,0.5375563,117980.0,117970.0,0.21840896]
[1752626718563,0.5375563,117980.0,117970.0,0.82487642]
[1752626718859,0.82283321,117980.0,117970.0,0.19563642]
[1752626719252,0.82283321,117980.0,117970.0,0.19338642]
[1752626719957,0.82283321,117980.0,117970.0,0.1695107]
[1752626720862,1.45187321,117980.0,117970.0,0.1695107]
[1752626722661,1.45187321,117980.0,117970.0,0.19339137]
[1752626724763,1.45187321,117980.0,117970.0,0.02388067]
[1752626724960,0.1695105,117970.0,117960.0,0.2966509]
[1752626725160,0.5374105,117970.0,117960.0,0.27815781]
[1752626725361,0.82268741,117970.0,117960.0,0.27815781]
[1752626725963,0.82268741,117970.0,117960.0,0.19341221]
[1752626726566,1.45112741,117970.0,117960.0,0.19341221]
[1752626727360,1.45112741,117970.0,117960.0,0.02388741]
[1752626727859,1.45112741,117970.0,117960.0,0.19341221]
[1752626728064,1.45112741,117970.0,117960.0,0.02388741]
[1752626729364,1.45112741,117970.0,117960.0,0.19341221]
[1752626729756,1.45112741,117970.0,117960.0,0.02388741]
[1752626730763,0.1695248,117960.0,117950.0,0.1695372]
[1752626730961,0.94985241,117960.0,117950.0,0.19343837]
[1752626731160,0.99223671,117960.0,117950.0,0.02389917]
[1752626732370,0.1766392,117950.0,117940.0,0.28810922]
[1752626732672,1.45115611,117950.0,117940.0,0.30346724]
[1752626732870,1.1658792,117950.0,117940.0,0.30346724]
[1752626734263,1.45115611,117950.0,117940.0,0.2383074]
[1752626734563,0.8050792,117950.0,117940.0,0.2383074]
[1752626734769,0.8050792,117950.0,117940.0,0.26107994]
[1752626736069,0.8050792,117950.0,117940.0,0.55489218]
[1752626737267,0.8050792,117950.0,117940.0,0.27417527]
[1752626737666,0.8050792,117950.0,117940.0,0.55945218]
[1752626738472,0.8050792,117950.0,117940.0,0.27417527]
[1752626738671,0.8050792,117950.0,117940.0,0.55945218]
[1752626738871,0.8050792,117950.0,117940.0,0.55489218]
[1752626739273,0.8050792,117950.0,117940.0,0.26961527]
[1752626740074,1.1658792,117950.0,117940.0,0.26961527]
[1752626740273,1.1658792,117950.0,117940.0,0.24684273]
[1752626740675,1.1658792,117950.0,117940.0,0.20445593]
[1752626741370,1.1658392,117950.0,117940.0,0.20445593]
[1752626742673,1.1658392,117950.0,117940.0,0.48973284]
[1752626742976,1.1658392,117950.0,117940.0,0.20445593]
[1752626743276,1.1658392,117950.0,117940.0,0.48973284]
[1752626743577,1.1658392,117950.0,117940.0,0.49455284]
[1752626743975,1.1658392,117950.0,117940.0,0.20927593]
[1752626744175,1.1658392,117950.0,117940.0,0.49455284]
[1752626745377,1.1658392,117950.0,117940.0,0.48973284]
[1752626749378,0.0071,117950.0,117940.0,0.49455284]
[1752626749580,0.8049192,117950.0,117940.0,0.49455284]
[1752626750277,0.63538,117950.0,117940.0,0.49455284]
[1752626750584,0.8049192,117950.0,117940.0,0.49455284]
[1752626751576,0.8049192,117950.0,117940.0,0.85535284]
[1752626751875,0.0071,117950.0,117940.0,1.48363284]
[1752626752077,0.1766392,117950.0,117940.0,1.50640538]
[1752626752882,1.13527931,117960.0,117950.0,0.1766992]
[1752626752883,0.55661401,117960.0,117950.0,0.1766992]
[1752626753080,0.55661401,117960.0,117950.0,0.48587201]
[1752626753281,0.38708861,117960.0,117950.0,0.48587201]
[1752626753478,0.02628861,117960.0,117950.0,0.84667201]
[1752626753677,0.02628861,117960.0,117950.0,0.86944455]
[1752626755480,0.19581341,117960.0,117950.0,0.58416764]
[1752626755683,0.1767648,117960.0,117950.0,1.21232764]
[1752626755884,0.1767648,117960.0,117950.0,1.49760455]
[1752626756086,0.1767648,117960.0,117950.0,1.21232764]
[1752626756281,0.1767648,117960.0,117950.0,1.49760455]
[1752626756484,0.1767648,117960.0,117950.0,1.52797373]
[1752626759488,0.1767648,117960.0,117950.0,1.16717373]
[1752626759691,0.1767648,117960.0,117950.0,1.13680455]
[1752626760183,0.00724,117960.0,117950.0,1.13680455]
[1752626760384,0.44061183,117990.0,117980.0,0.1766561]
[1752626760590,0.19089931,117990.0,117980.0,1.09001301]
[1752626760785,0.1718017,117990.0,117980.0,1.11393556]
[1752626760981,0.00232,117990.0,117980.0,1.11393556]
[1752626761688,0.1718017,117990.0,117980.0,1.11393556]
[1752626761992,0.1718017,117990.0,117980.0,0.82865865]
[1752626762286,0.1718017,117990.0,117980.0,1.11393556]
[1752626762490,0.1767217,117990.0,117980.0,1.11393556]
[1752626763292,0.1767217,117990.0,117980.0,1.09001301]
[1752626764597,0.00724,117990.0,117980.0,1.09001301]
[1752626765491,0.00232,117990.0,117980.0,1.09001301]
[1752626765687,3.95258641,118000.0,117980.0,1.09001301]
[1752626765888,3.5401873,118000.0,117990.0,0.46191861]
[1752626766082,3.37072,118000.0,117990.0,0.46191861]
[1752626766590,3.5401873,118000.0,117990.0,0.52838181]
[1752626768793,3.1793873,118000.0,117990.0,0.52838181]
[1752626769092,3.5401873,118000.0,117990.0,0.52838181]
[1752626769691,3.1793873,118000.0,117990.0,0.52838181]
[1752626770193,3.1793873,118000.0,117990.0,0.2431049]
[1752626770395,3.1793873,118000.0,117990.0,0.52838181]
[1752626775393,3.1793873,118000.0,117990.0,0.5523666]
[1752626780398,3.1793873,118000.0,117990.0,0.52838181]
[1752626780997,3.5401873,118000.0,117990.0,0.2431049]
[1752626781196,3.5401873,118000.0,117990.0,0.8706649]
[1752626782299,3.5401873,118000.0,117990.0,0.8706249]
[1752626782898,3.5401873,118000.0,117990.0,1.15590181]
[1752626784398,3.1793873,118000.0,117990.0,0.8706249]
[1752626784599,3.5401873,118000.0,117990.0,0.8706249]
[1752626784797,3.1793873,118000.0,117990.0,0.8706249]
[1752626785597,3.5401873,118000.0,117990.0,0.8706249]
[1752626786203,3.5401873,118000.0,117990.0,0.2431049]
[1752626786401,3.5401873,118000.0,117990.0,0.8704649]
[1752626786701,3.1793873,118000.0,117990.0,0.8704649]
[1752626786902,3.1793873,118000.0,117990.0,0.2431049]
[1752626787097,3.5401873,118000.0,117990.0,0.8704649]
[1752626787902,3.5401873,118000.0,117990.0,0.2431049]
[1752626788401,3.5401873,118000.0,117990.0,0.89443079]
[1752626788701,3.1793873,118000.0,117990.0,0.89443079]
[1752626788905,3.5401873,118000.0,117990.0,0.89443079]
[1752626789698,3.1793873,118000.0,117990.0,0.89443079]
[1752626789900,3.5401873,118000.0,117990.0,0.89443079]
[1752626790200,3.1793873,118000.0,117990.0,0.89443079]
[1752626790603,3.1793873,118000.0,117990.0,1.1797077]
[1752626791805,3.1793873,118000.0,117990.0,1.15566181]
[1752626793308,3.1793873,118000.0,117990.0,1.1797214]
[1752626794405,3.1793873,118000.0,117990.0,1.20249394]
[1752626798810,3.1793873,118000.0,117990.0,0.57521394]
[1752626799209,3.1793873,118000.0,117990.0,1.20201394]
[1752626800508,3.00992,118000.0,117990.0,1.20201394]
[1752626800904,3.1793873,118000.0,117990.0,1.20201394]
[1752626802010,3.1793873,118000.0,117990.0,0.28993703]
[1752626802204,3.1793873,118000.0,117990.0,1.20193394]
[1752626803109,3.1793873,118000.0,117990.0,0.91665703]
[1752626803309,3.1793873,118000.0,117990.0,1.20193394]
[1752626803920,3.1793873,118000.0,117990.0,0.91665703]
[1752626804119,3.1793873,118000.0,117990.0,1.20193394]
[1752626805021,3.5401873,118000.0,117990.0,0.89368449]
[1752626806119,3.82546421,118000.0,117990.0,0.26000449]
[1752626806317,4.45190421,118000.0,117990.0,0.73972187]
[1752626806518,4.45190421,118000.0,117990.0,0.90920357]
[1752626806719,4.1666273,118000.0,117990.0,0.26000449]
[1752626806918,4.45190421,118000.0,117990.0,0.26000449]
[1752626809213,4.45190421,118000.0,117990.0,0.88632449]
[1752626809412,4.45190421,118000.0,117990.0,0.26000449]
[1752626811828,4.1666273,118000.0,117990.0,0.26000449]
[1752626812122,4.45190421,118000.0,117990.0,0.26000449]
[1752626812527,4.75638582,118000.0,117990.0,0.02405959]
[1752626812825,0.1694817,117990.0,117980.0,0.02275908]
[1752626813123,1.44167861,117990.0,117980.0,0.02275908]
[1752626813322,0.1694961,117980.0,117970.0,0.26984316]
[1752626813623,1.44169301,117980.0,117970.0,0.2167149]
[1752626815624,0.1695104,117970.0,117960.0,0.36679817]
[1752626815820,0.81558731,117970.0,117960.0,0.96963899]
[1752626816124,0.5303104,117970.0,117960.0,0.96963899]
[1752626816520,0.1695104,117970.0,117960.0,0.96963899]
[1752626817823,0.1695104,117970.0,117960.0,1.2549159]
[1752626819327,0.169496,117980.0,117970.0,0.3038064]
[1752626819626,1.240881,117990.0,117980.0,0.171826]
[1752626819824,0.615041,117990.0,117980.0,0.176666]
[1752626820024,1.240881,117990.0,117980.0,0.176666]
[1752626820224,0.254241,117990.0,117980.0,0.176666]
[1752626820427,0.2118679,117990.0,117980.0,1.08774291]
[1752626820729,4.2650207,118000.0,117990.0,0.1766517]
[1752626821020,3.6392207,118000.0,117990.0,0.46192861]
[1752626821321,3.0242047,118000.0,117990.0,0.46192861]
[1752626821527,3.005,118000.0,117990.0,0.47907042]
[1752626821915,3.005,118000.0,117990.0,0.5018295]
[1752626822719,3.1744673,118000.0,117990.0,0.5018295]
[1752626823023,3.1744673,118000.0,117990.0,1.1275095]
[1752626823726,3.005,118000.0,117990.0,1.1275095]
[1752626823928,3.005,118000.0,117990.0,1.19455116]
[1752626824229,3.005,118000.0,117990.0,1.73245726]
[1752626824726,3.005,118000.0,117990.0,1.75604071]
[1752626825626,3.005,118000.0,117990.0,1.58654471]
[1752626825824,3.005,118000.0,117990.0,1.60923719]
[1752626826419,3.005,118000.0,117990.0,1.32396028]
[1752626826618,3.005,118000.0,117990.0,1.60923719]
[1752626828329,3.005,118000.0,117990.0,1.58654471]
[1752626830425,3.005,118000.0,117990.0,1.75604071]
[1752626830621,3.005,118000.0,117990.0,2.05182322]
[1752626830828,2.98094041,118000.0,117990.0,2.30673095]
[1752626831228,2.98094041,118000.0,117990.0,2.30621095]
[1752626831426,2.98094041,118000.0,117990.0,2.02093404]
[1752626833034,2.98094041,118000.0,117990.0,2.30621095]
[1752626833228,2.98094041,118000.0,117990.0,2.040641]
[1752626833728,2.64105453,118000.0,117990.0,2.588341]
[1752626833925,2.53378943,118000.0,117990.0,2.588341]
[1752626834126,2.50776213,118000.0,117990.0,2.338341]
[1752626834326,2.49276213,118000.0,117990.0,2.588341]
[1752626835135,2.47522213,118000.0,117990.0,2.55812844]
[1752626835530,2.44875033,118000.0,117990.0,2.55812844]
[1752626835731,2.44875033,118000.0,117990.0,2.5883156]
[1752626836727,2.44875033,118000.0,117990.0,2.55812844]
[1752626837327,0.638481,118000.0,117990.0,2.43249301]
[1752626837527,0.53364898,118000.0,117990.0,2.3867105]
[1752626837734,0.34386398,118000.0,117990.0,2.3867105]
[1752626837929,0.28573618,118000.0,117990.0,2.3867105]
[1752626838128,0.00493,118020.0,118010.0,0.169453]
[1752626838326,0.00493,118020.0,118010.0,1.23938324]
[1752626838531,0.1767486,118020.0,118010.0,0.95410633]
[1752626838734,0.1767486,118020.0,118010.0,1.86794324]
[1752626838735,0.00731,118020.0,118010.0,1.86794324]
[1752626839533,0.00731,118020.0,118010.0,1.58266633]
[1752626839739,0.00731,118020.0,118010.0,1.86794324]
[1752626839941,0.00731,118020.0,118010.0,1.58266633]
[1752626840136,0.00731,118020.0,118010.0,1.86794324]
[1752626840536,0.00731,118020.0,118010.0,1.8453278]
[1752626841132,0.00731,118020.0,118010.0,1.86794324]
[1752626841544,0.00731,118020.0,118010.0,1.56005089]
[1752626841843,0.00731,118020.0,118010.0,1.8453278]
[1752626843243,0.00731,118020.0,118010.0,1.89809717]
[1752626844341,0.00731,118020.0,118010.0,1.89807911]
[1752626844745,0.00731,118020.0,118010.0,1.87548173]
[1752626844942,0.00731,118020.0,118010.0,1.24692173]
[1752626845244,0.00731,118020.0,118010.0,1.87744173]
[1752626847248,0.00731,118020.0,118010.0,1.92267262]
[1752626847950,0.00731,118020.0,118010.0,1.63739571]
[1752626848147,0.00731,118020.0,118010.0,1.92267262]
[1752626849153,0.00731,118020.0,118010.0,1.89251869]
[1752626849749,0.00493,118020.0,118010.0,1.89251869]
[1752626850552,0.00493,118020.0,118010.0,1.60724178]
[1752626850753,0.00493,118020.0,118010.0,1.89251869]
[1752626851347,0.00731,118020.0,118010.0,1.89251869]
[1752626853457,0.00731,118020.0,118010.0,1.60724178]
[1752626853757,0.00731,118020.0,118010.0,1.89251869]
[1752626853956,0.00731,118020.0,118010.0,1.90819769]
[1752626854458,0.00731,118020.0,118010.0,2.20589769]
[1752626860560,0.00493,118020.0,118010.0,2.20589769]
[1752626861662,0.00493,118020.0,118010.0,2.1449878]
[1752626862058,0.00493,118020.0,118010.0,2.20552805]
[1752626862256,0.00493,118020.0,118010.0,2.1449878]
[1752626862863,0.5725498,118050.0,118040.0,0.16941]
[1752626863063,0.2141298,118050.0,118040.0,0.22326919]
[1752626863263,0.49940671,118050.0,118040.0,0.85438919]
[1752626863564,0.49940671,118050.0,118040.0,0.86303957]
[1752626864462,0.49940671,118050.0,118040.0,0.90845318]
[1752626864764,0.49940671,118050.0,118040.0,0.86303957]
[1752626864962,0.50411671,118050.0,118040.0,0.86303957]
[1752626865260,0.00709,118050.0,118040.0,1.15060648]
[1752626865567,0.00709,118050.0,118040.0,1.24602744]
[1752626865863,0.00709,118050.0,118040.0,1.53130435]
[1752626867966,0.00709,118050.0,118040.0,1.24602744]
[1752626868461,0.36551,118060.0,118050.0,0.1716857]
[1752626868655,0.36786,118060.0,118050.0,0.53832084]
[1752626868862,0.36786,118060.0,118050.0,0.56101383]
[1752626869154,0.5372414,118060.0,118050.0,0.56101383]
[1752626869364,0.5372414,118060.0,118050.0,0.53071967]
[1752626869558,0.5372414,118060.0,118050.0,0.56099532]
[1752626869958,0.5372414,118060.0,118050.0,0.53071967]
[1752626870263,0.5372414,118060.0,118050.0,1.18995508]
[1752626870463,0.5372414,118060.0,118050.0,1.18979508]
[1752626871663,0.5372414,118060.0,118050.0,1.20852542]
[1752626871861,0.17939378,118130.0,118070.0,0.7842178]
[1752626872055,0.00630386,118150.0,118130.0,0.1269547]
[1752626872258,0.17555776,118150.0,118140.0,0.3608]
[1752626872462,0.17555776,118150.0,118130.0,0.3608]
[1752626872463,0.2139343,118140.0,118130.0,0.3608]
[1752626872666,0.1716311,118130.0,118120.0,0.3608]
[1752626872958,0.00235,118120.0,118110.0,2.0301097]
[1752626873166,0.28762691,118120.0,118110.0,2.05683251]
[1752626873362,0.28762691,118120.0,118110.0,0.45371942]
[1752626873561,0.63251,118120.0,118110.0,0.59630631]
[1752626873865,0.63722,118120.0,118110.0,0.59630631]
[1752626874063,0.8065154,118120.0,118110.0,0.59630631]
[1752626874254,0.1763554,118120.0,118110.0,0.59630631]
[1752626874463,0.8062754,118120.0,118110.0,0.69863382]
[1752626874661,0.8062754,118120.0,118110.0,0.67068127]
[1752626874963,0.00706,118120.0,118110.0,0.9454261]
[1752626875176,0.21787916,118150.0,118140.0,0.1692668]
[1752626875365,0.88983456,118150.0,118140.0,0.55673815]
[1752626875666,1.34934147,118150.0,118140.0,0.38247135]
[1752626875860,0.1716311,118130.0,118120.0,0.3608]
[1752626876168,0.46161801,118130.0,118120.0,0.3608]
[1752626876666,0.63093001,118130.0,118120.0,0.3608]
[1752626876961,0.1692954,118120.0,118110.0,0.59629911]
[1752626877158,1.09215231,118120.0,118110.0,0.59630631]
[1752626877561,1.09215231,118120.0,118110.0,0.60335631]
[1752626878365,0.1763554,118120.0,118110.0,0.88863322]
[1752626878663,0.126969,118130.0,118120.0,0.1763454]
[1752626878664,0.2609857,118130.0,118120.0,0.1763454]
[1752626878866,0.2609857,118130.0,118120.0,0.82242231]
[1752626879066,0.2609857,118130.0,118120.0,0.5371454]
[1752626879866,0.2609857,118130.0,118120.0,0.54577321]
[1752626880561,0.00235,118130.0,118120.0,0.83105012]
[1752626880768,0.17555626,118150.0,118140.0,0.1763167]
[1752626880968,0.17555626,118150.0,118140.0,1.18319361]
[1752626881163,0.18026626,118150.0,118140.0,1.18319361]
[1752626881362,0.18026626,118150.0,118140.0,0.8979167]
[1752626881564,0.18026626,118150.0,118140.0,0.8908667]
[1752626881565,1.09730317,118150.0,118140.0,0.8908667]
[1752626881764,1.09742317,118150.0,118140.0,0.8908667]
[1752626882062,1.26670317,118150.0,118140.0,0.7216]
[1752626882360,1.51670317,118150.0,118140.0,0.3608]
[1752626883264,0.34954626,118150.0,118140.0,0.5300671]
[1752626883470,0.63482317,118150.0,118140.0,0.5300671]
[1752626883663,0.34954626,118150.0,118140.0,0.5323571]
[1752626883865,1.26718317,118150.0,118140.0,0.36309]
[1752626884167,1.26718317,118150.0,118140.0,0.3608]
[1752626884366,1.26718317,118150.0,118140.0,0.5300672]
[1752626884869,0.63482317,118150.0,118140.0,0.5300672]
[1752626885175,1.26730317,118150.0,118140.0,0.5300671]
[1752626885863,1.26730317,118150.0,118140.0,0.3608]
[1752626886870,1.26730317,118150.0,118140.0,0.5300671]
[1752626887072,1.26730317,118150.0,118140.0,0.3608]
[1752626888469,0.2962237,118140.0,118130.0,0.3608]
[1752626888670,0.63088041,118140.0,118130.0,0.3608]
[1752626888867,0.63088041,118140.0,118120.0,0.3608]
[1752626888868,0.1716315,118130.0,118120.0,0.3608]
[1752626889068,0.1716315,118130.0,118110.0,0.42699661]
[1752626889069,0.1716458,118120.0,118110.0,0.60483686]
[1752626889374,1.09431271,118120.0,118110.0,0.61188686]
[1752626890970,1.09431271,118120.0,118110.0,0.42699661]
[1752626891472,1.09431271,118120.0,118110.0,0.59630681]
[1752626891774,1.09431271,118120.0,118110.0,0.59630671]
[1752626892884,1.09431271,118120.0,118110.0,0.59630681]
[1752626893178,1.09431271,118120.0,118110.0,0.42699661]
[1752626893872,0.8090358,118120.0,118110.0,0.59630671]
[1752626895276,1.09431271,118120.0,118110.0,0.59630671]
[1752626897279,1.09431271,118120.0,118110.0,0.3608]
[1752626898583,1.09431271,118120.0,118110.0,0.36535]
[1752626898885,1.09431271,118120.0,118110.0,0.39021634]
[1752626899083,1.09431271,118120.0,118110.0,0.55952644]
[1752626900383,1.09431271,118120.0,118110.0,0.39021634]
[1752626901684,0.8090358,118120.0,118110.0,0.55952654]
[1752626901885,1.09431271,118120.0,118110.0,0.55952654]
[1752626902286,0.8090358,118120.0,118110.0,0.55952654]
[1752626902486,1.09431271,118120.0,118110.0,0.55952654]
[1752626902682,1.09431271,118120.0,118110.0,0.39021634]
[1752626902883,1.54891762,118120.0,118110.0,0.38566634]
[1752626903088,1.54891762,118120.0,118110.0,0.02486634]
[1752626903289,0.9783638,118120.0,118110.0,0.02486634]
[1752626903488,1.26364071,118120.0,118110.0,0.02486634]
[1752626905089,1.26364071,118120.0,118110.0,0.01986634]
[1752626905294,1.54891762,118120.0,118110.0,0.01986634]
[1752626905490,1.54891762,118120.0,118110.0,0.01973899]
[1752626905690,1.80739531,118120.0,118110.0,0.01973899]
[1752626906388,1.55739531,118120.0,118110.0,0.01973899]
[1752626907290,0.1693101,118110.0,118100.0,0.3608]
[1752626907489,0.45478701,118110.0,118100.0,0.3608]
[1752626908200,0.62413101,118110.0,118100.0,0.3608]
[1752626908690,0.45478701,118110.0,118100.0,0.3608]
[1752626908897,0.1693388,118090.0,118080.0,0.38793576]
[1752626909097,1.08385571,118090.0,118080.0,0.39028576]
[1752626909295,1.08385571,118090.0,118080.0,0.55963886]
[1752626909496,1.08385571,118090.0,118080.0,0.54564297]
[1752626909894,1.08385571,118090.0,118080.0,0.37628987]
[1752626910294,1.08385571,118090.0,118080.0,0.54564307]
[1752626910494,1.08385571,118090.0,118080.0,0.36535]
[1752626911193,0.1693388,118090.0,118080.0,0.82233001]
[1752626911489,0.2542026,118100.0,118090.0,0.1762388]
[1752626911696,0.8837626,118100.0,118090.0,0.82231571]
[1752626911895,0.8838426,118100.0,118090.0,0.82231571]
[1752626912199,0.8838426,118100.0,118090.0,0.5370388]
[1752626913900,0.0002,118100.0,118090.0,0.82231571]
[1752626914894,0.1695245,118100.0,118090.0,0.82231571]
[1752626915098,0.1695245,118100.0,118090.0,0.84490147]
[1752626915606,0.0002,118100.0,118090.0,0.84490147]
[1752626916000,0.0002,118100.0,118090.0,1.47378147]
[1752626917499,0.0002,118100.0,118090.0,1.47525894]
[1752626918399,0.1695245,118100.0,118090.0,1.50537329]
[1752626919003,0.1695245,118100.0,118090.0,1.22009638]
[1752626919205,0.1695245,118100.0,118090.0,1.50537329]
[1752626919803,0.0002,118100.0,118090.0,1.50537329]
[1752626920203,0.0002,118100.0,118090.0,1.49789377]
[1752626920905,0.1695245,118100.0,118090.0,1.49789377]
[1752626923100,0.0002,118100.0,118090.0,1.49789377]
[1752626923301,0.0002,118100.0,118090.0,1.47525894]
[1752626924205,0.0002,118100.0,118090.0,1.18874203]
[1752626924507,0.0002,118100.0,118090.0,1.47401894]
[1752626925203,0.0002,118100.0,118090.0,1.49665377]
[1752626925506,0.0002,118100.0,118090.0,1.47401894]
[1752626925700,0.0002,118100.0,118090.0,1.49665377]
[1752626926109,0.28320581,118150.0,118140.0,0.1764871]
[1752626926297,0.22277596,118150.0,118140.0,1.18336401]
[1752626926502,0.22277596,118150.0,118140.0,1.35722]
[1752626926503,0.50805287,118150.0,118140.0,1.35722]
[1752626926703,0.50805287,118150.0,118140.0,1.5264871]
[1752626927107,0.50805287,118150.0,118140.0,0.8980871]
[1752626927405,0.22277596,118150.0,118140.0,1.5272871]
[1752626928007,0.22277596,118150.0,118140.0,1.5271671]
[1752626928506,0.00395386,118150.0,118140.0,1.88020124]
[1752626928901,0.17320666,118150.0,118140.0,1.88020124]
[1752626929105,0.00395386,118150.0,118140.0,1.88020124]
[1752626929307,0.00395386,118150.0,118140.0,1.59492433]
[1752626929612,0.00395386,118150.0,118140.0,1.88020124]
[1752626929916,0.17320666,118150.0,118140.0,1.88020124]
[1752626931011,0.17320666,118150.0,118140.0,1.88865727]
[1752626931611,0.17555666,118150.0,118140.0,1.88865727]
[1752626932011,0.17555666,118150.0,118140.0,1.60338036]
[1752626932314,0.17555666,118150.0,118140.0,1.60278036]
[1752626933706,0.17555666,118150.0,118140.0,0.97430036]
[1752626933912,0.17555666,118150.0,118140.0,1.60242036]
[1752626934321,0.17555666,118150.0,118140.0,1.60238036]
[1752626934512,0.17320666,118150.0,118140.0,0.97430036]
[1752626934707,0.17320666,118150.0,118140.0,1.60234036]
[1752626934909,0.00395386,118150.0,118140.0,1.88761727]
[1752626935108,0.00395386,118150.0,118140.0,1.88749727]
[1752626935314,0.00395386,118150.0,118140.0,1.25957727]
[1752626935516,0.00395386,118150.0,118140.0,1.88741727]
[1752626935718,0.00395386,118150.0,118140.0,1.25957727]
[1752626935921,0.17320666,118150.0,118140.0,1.88741727]
[1752626936119,0.17320666,118150.0,118140.0,1.25957727]
[1752626936423,0.00395386,118150.0,118140.0,1.25957727]
[1752626936719,0.00395386,118150.0,118140.0,1.88737727]
[1752626937020,0.17320666,118150.0,118140.0,1.88737727]
[1752626937617,0.00395386,118150.0,118140.0,1.88737727]
[1752626938120,0.2561998,118170.0,118160.0,0.256288]
[1752626938418,0.54637671,118170.0,118160.0,1.5256442]
[1752626939220,0.2187916,118170.0,118160.0,1.5256442]
[1752626940324,0.1764841,118170.0,118160.0,1.5256442]
[1752626941824,0.46176101,118170.0,118160.0,0.8980442]
[1752626942020,0.1764841,118170.0,118160.0,1.5257242]